fUSD/lending_fUSD_20240813
["ID","MTS","AMOUNT","RATE_DAILY","PERIOD"]
[334758618,1723535557107,-24637.73,0.00023387,6]
[334758619,1723535557117,-49323.7,0.00023387,6]
[334758620,1723535557128,-5679.05,0.00023387,6]
[334758621,1723535557138,-700.0,0.00023413,2]
[334758622,1723535557150,-151.59,0.00023435,2]
[334758623,1723535557160,-500.0,0.00023436,2]
[334758624,1723535557170,-224.38282423,0.00023446,4]
[334758625,1723535557181,-150.0,0.00023454,4]
[334758626,1723535557191,-6000.0,0.00023463,7]
[334758627,1723535557201,-166.88852811,0.00023488,2]
[334758628,1723535557210,-1900.0,0.00023489,2]
[334758629,1723535557220,-3400.0,0.00023492,2]
[334758630,1723535557230,-1900.0,0.00023507,2]
[334758631,1723535557241,-600.0,0.00023523,2]
[334758632,1723535557251,-500.0,0.0002353,2]
[334758633,1723535557262,-1000.0,0.00023535,2]
[334758634,1723535557272,-500.0,0.00023544,2]
[334758635,1723535557282,-1932.1294843,0.00023555,2]
[334758636,1723535557292,-3214.8,0.00023561,2]
[334758637,1723535557301,-702.35,0.00023561,2]
[334758638,1723535557311,-500.0,0.00023561,2]
[334758639,1723535557321,-571.12,0.00023561,2]
[334758640,1723535557331,-500.0,0.00023561,2]
[334758641,1723535557342,-750.64,0.00023561,2]
[334758642,1723535557351,-500.0,0.00023561,2]
[334758643,1723535557361,-500.0,0.00023561,2]
[334758644,1723535557371,-500.0,0.00023561,2]
[334758645,1723535557380,-588.49,0.00023561,2]
[334758646,1723535557390,-1015.8,0.00023561,2]
[334758647,1723535557399,-500.0,0.00023561,2]
[334758648,1723535557409,-2000.0,0.00023561,2]
[334758649,1723535557419,-508.3,0.00023561,2]
[334758650,1723535557429,-500.0,0.00023561,2]
[334758651,1723535557438,-969.43,0.00023561,2]
[334758652,1723535557449,-788.34,0.00023561,2]
[334758653,1723535557459,-500.0,0.00023561,2]
[334758654,1723535557468,-500.0,0.00023561,2]
[334758655,1723535557478,-510.82,0.00023561,2]
[334758656,1723535557487,-500.0,0.00023561,2]
[334758657,1723535557497,-2849.94,0.00023561,2]
[334758658,1723535557508,-500.0,0.00023561,2]
[334758659,1723535557519,-500.0,0.00023561,2]
[334758660,1723535557529,-506.46,0.00023561,2]
[334758661,1723535557540,-903.07,0.00023561,2]
[334758662,1723535557550,-500.0,0.00023561,2]
[334758663,1723535557562,-546.65,0.00023561,2]
[334758664,1723535557573,-1249.54,0.00023561,2]
[334758665,1723535557583,-803.11,0.00023561,2]
[334758666,1723535557593,-500.0,0.00023561,2]
[334758667,1723535557603,-1655.36,0.00023561,2]
[334758668,1723535557613,-500.0,0.00023561,2]
[334758669,1723535557623,-573.19257296,0.00023561,2]
[334758670,1723535557634,-1068.76,0.00023561,2]
[334758671,1723535557644,-613.06,0.00023561,2]
[334758672,1723535557653,-1522.99,0.00023561,2]
[334758673,1723535557664,-914.8,0.00023561,2]
[334758674,1723535557674,-500.0,0.00023561,2]
[334758675,1723535557684,-682.0,0.00023561,2]
[334758676,1723535557694,-500.0,0.00023561,2]
[334758677,1723535557703,-500.0,0.00023561,2]
[334758678,1723535557713,-562.12,0.00023561,2]
[334758679,1723535557725,-224.38282423,0.00023574,4]
[334758680,1723535557737,-1900.0,0.00023574,2]
[334758681,1723535557746,-500.0,0.00023578,2]
[334758682,1723535557757,-150.0,0.00023588,4]
[334758683,1723535557767,-500.0,0.00023608,2]
[334758684,1723535557778,-152.0,0.0002361,12]
[334758685,1723535557788,-338.18913153,0.00023631,2]
[334758686,1723535557799,-600.0,0.00023637,2]
[334758687,1723535557810,-500.0,0.00023642,2]
[334758688,1723535557820,-150.0,0.00023648,2]
[334758689,1723535557829,-500.0,0.00023663,2]
[334758690,1723535557839,-700.0,0.00023677,2]
[334758691,1723535557848,-10540.79,0.000237,7]
[334758692,1723535557861,-1011.4,0.000237,2]
[334758693,1723535557872,-224.38282423,0.00023701,4]
[334758694,1723535557881,-500.0,0.00023708,2]
[334758695,1723535557891,-150.0,0.00023717,4]
[334758696,1723535557901,-500.0,0.00023727,2]
[334758697,1723535557910,-600.0,0.0002373,2]
[334758698,1723535557920,-500.0,0.00023739,2]
[334758699,1723535557930,-3300.0,0.0002374,2]
[334758700,1723535557941,-500.0,0.00023745,2]
[334758701,1723535557951,-607.75834073,0.00023773,2]
[334758702,1723535557962,-500.0,0.00023775,2]
[334758703,1723535557972,-500.0,0.00023775,2]
[334758704,1723535557982,-7015.94146402,0.000238,15]
[334758705,1723535557992,-3000.0,0.000238,2]
[334758706,1723535558001,-600.0,0.00023807,2]
[334758707,1723535558011,-500.0,0.00023814,2]
[334758708,1723535558021,-150.0,0.00023826,4]
[334758709,1723535558031,-224.38282423,0.00023829,4]
[334758710,1723535558041,-500.0,0.00023833,2]
[334758711,1723535558051,-500.0,0.00023834,2]
[334758712,1723535558063,-3214.8,0.00023835,2]
[334758713,1723535558073,-702.35,0.00023835,2]
[334758714,1723535558083,-278.66413727,0.00023835,2]
[334758715,1723535558093,-571.12,0.00023835,2]
[334758716,1723535558103,-500.0,0.00023835,2]
[334758717,1723535558112,-750.64,0.00023835,2]
[334758718,1723535558121,-500.0,0.00023835,2]
[334758719,1723535558131,-500.0,0.00023835,2]
[334758720,1723535558140,-500.0,0.00023835,2]
[334758721,1723535558150,-588.49,0.00023835,2]
[334758722,1723535558161,-1015.8,0.00023835,2]
[334758723,1723535558170,-500.0,0.00023835,2]
[334758724,1723535558180,-2000.0,0.00023835,2]
[334758725,1723535558190,-508.3,0.00023835,2]
[334758726,1723535558199,-500.0,0.00023835,2]
[334758727,1723535558209,-969.43,0.00023835,2]
[334758728,1723535558220,-788.34,0.00023835,2]
[334758729,1723535558230,-500.0,0.00023835,2]
[334758730,1723535558240,-500.0,0.00023835,2]
[334758731,1723535558250,-510.82,0.00023835,2]
[334758732,1723535558259,-500.0,0.00023835,2]
[334758733,1723535558270,-2849.94,0.00023835,2]
[334758734,1723535558280,-537.95,0.00023835,2]
[334758735,1723535558290,-500.0,0.00023835,2]
[334758736,1723535558300,-506.46,0.00023835,2]
[334758737,1723535558311,-500.0,0.00023835,2]
[334758738,1723535558320,-903.07,0.00023835,2]
[334758739,1723535558330,-546.65,0.00023835,2]
[334758740,1723535558342,-1249.54,0.00023835,2]
[334758741,1723535558353,-803.11,0.00023835,2]
[334758742,1723535558362,-500.0,0.00023835,2]
[334758743,1723535558372,-1655.36,0.00023835,2]
[334758744,1723535558384,-421.89861804,0.00023835,2]
[334758745,1723535558394,-1068.76,0.00023835,2]
[334758746,1723535558403,-613.06,0.00023835,2]
[334758747,1723535558415,-1522.99,0.00023835,2]
[334758748,1723535558425,-914.8,0.00023835,2]
[334758749,1723535558438,-510.45,0.00023835,2]
[334758750,1723535558449,-682.0,0.00023835,2]
[334758751,1723535558460,-352.64873224,0.00023835,2]
[334758752,1723535558471,-500.0,0.00023835,2]
[334758753,1723535558481,-562.12,0.00023835,2]
[334758754,1723535558491,-389.2089824,0.00023847,2]
[334758755,1723535558502,-1000.0,0.0002387,2]
[334758756,1723535558511,-211.03413449,0.00023873,2]
[334758757,1723535558522,-500.0,0.00023901,2]
[334758758,1723535558534,-1000.0,0.00023911,2]
[334758759,1723535558545,-3400.0,0.0002392,2]
[334758760,1723535558556,-335304.0,0.00023922,2]
[334758761,1723535558571,-500.0,0.00023926,2]
[334758762,1723535558580,-500.0,0.00023935,2]
[334758763,1723535558590,-224.38282423,0.00023956,4]
[334758764,1723535558600,-1000.0,0.00023978,2]
[334758765,1723535558613,-150.0,0.0002398,4]
[334758766,1723535558623,-162520.25753546,0.0002398,2]
[334758767,1723535558633,-21083.62400282,0.0002398,2]
[334758768,1723535558648,-3300.0,0.00023986,2]
[334758769,1723535558658,-11205.66951926,0.00024,5]
[334758770,1723535558671,-18633.14113215,0.00024,2]
[334758771,1723535558681,-211.05080352,0.00024,2]
[334758772,1723535558692,-964.37722983,0.00024,2]
[334758773,1723535558702,-2220.0,0.00024,2]
[334758774,1723535558711,-890.0,0.00024,5]
[334758775,1723535558723,-2000.0,0.00024,2]
[334758776,1723535558735,-16163.10622228,0.00024,2]
[334758777,1723535558744,-1680.47325663,0.00024,2]
[334758778,1723535558754,-940.0353907,0.00024,25]
[334758779,1723535558765,-1841.84177801,0.00024,2]
[334758780,1723535558776,-25196.301482,0.00024,2]
[334758781,1723535558786,-21809.0,0.00024,2]
[334758782,1723535558795,-900.0,0.00024,2]
[334758783,1723535558805,-359.257374,0.00024,2]
[334758784,1723535558815,-340.0,0.00024,2]
[334758785,1723535558825,-185.17826957,0.00024008,2]
[334758786,1723535558834,-3417.59,0.00024015,2]
[334758787,1723535558843,-1830.87,0.00024027,2]
[334758788,1723535558853,-150.0,0.00024032,4]
[334758789,1723535558864,-500.0,0.00024037,2]
[334758790,1723535558874,-500.0,0.0002404,2]
[334758791,1723535558883,-600.0,0.00024042,2]
[334758792,1723535558892,-151.15,0.0002406,2]
[334758793,1723535558902,-150.0,0.00024064,4]
[334758794,1723535558911,-600.0,0.00024075,2]
[334758795,1723535558921,-3055.7931734,0.0002408,2]
[334758796,1723535558931,-224.38282423,0.00024083,4]
[334758797,1723535558941,-3300.0,0.00024086,2]
[334758798,1723535558950,-3400.0,0.0002409,2]
[334758799,1723535558960,-613.72,0.00024105,2]
[334758800,1723535558970,-3300.0,0.00024107,2]
[334758801,1723535558979,-3214.8,0.00024109,2]
[334758802,1723535558988,-702.35,0.00024109,2]
[334758803,1723535558999,-571.12,0.00024109,2]
[334758804,1723535559008,-500.0,0.00024109,2]
[334758805,1723535559018,-750.64,0.00024109,2]
[334758806,1723535559029,-500.0,0.00024109,2]
[334758807,1723535559039,-500.0,0.00024109,2]
[334758808,1723535559049,-500.0,0.00024109,2]
[334758809,1723535559060,-588.49,0.00024109,2]
[334758810,1723535559070,-1015.8,0.00024109,2]
[334758811,1723535559079,-500.0,0.00024109,2]
[334758812,1723535559089,-2000.0,0.00024109,2]
[334758813,1723535559101,-508.3,0.00024109,2]
[334758814,1723535559110,-500.0,0.00024109,2]
[334758815,1723535559122,-969.43,0.00024109,2]
[334758816,1723535559131,-788.34,0.00024109,2]
[334758817,1723535559141,-500.0,0.00024109,2]
[334758818,1723535559150,-500.0,0.00024109,2]
[334758819,1723535559160,-510.82,0.00024109,2]
[334758820,1723535559169,-500.0,0.00024109,2]
[334758821,1723535559179,-2849.94,0.00024109,2]
[334758822,1723535559193,-500.0,0.00024109,2]
[334758823,1723535559202,-500.0,0.00024109,2]
[334758824,1723535559212,-903.07,0.00024109,2]
[334758825,1723535559221,-546.65,0.00024109,2]
[334758826,1723535559231,-506.46,0.00024109,2]
[334758827,1723535559241,-1249.54,0.00024109,2]
[334758828,1723535559252,-803.11,0.00024109,2]
[334758829,1723535559261,-500.0,0.00024109,2]
[334758830,1723535559270,-1655.36,0.00024109,2]
[334758831,1723535559280,-1068.76,0.00024109,2]
[334758832,1723535559291,-613.06,0.00024109,2]
[334758833,1723535559301,-1522.99,0.00024109,2]
[334758834,1723535559313,-914.8,0.00024109,2]
[334758835,1723535559322,-682.0,0.00024109,2]
[334758836,1723535559331,-500.0,0.00024109,2]
[334758837,1723535559341,-562.12,0.00024109,2]
[334758838,1723535559350,-500.0,0.00024112,2]
[334758839,1723535559361,-3300.0,0.00024134,2]
[334758840,1723535559370,-700.0,0.00024142,2]
[334758841,1723535559380,-173.0,0.00024164,2]
[334758842,1723535559389,-4652.0,0.00024173,2]
[334758843,1723535559398,-152.0,0.00024176,13]
[334758844,1723535559408,-500.0,0.00024179,2]
[334758845,1723535559417,-4870.56,0.00024184,2]
[334758846,1723535559427,-500.0,0.00024184,2]
[334758847,1723535559436,-510.23420916,0.00024193,2]
[334758848,1723535559446,-398.03146902,0.0002421,2]
[334758849,1723535559455,-224.38282423,0.00024211,4]
[334758850,1723535559464,-150.0,0.00024225,2]
[334758851,1723535559473,-600.0,0.00024234,2]
[334758852,1723535559482,-1000.0,0.00024235,2]
[334758853,1723535559492,-150.0,0.00024243,4]
[334758854,1723535559501,-1220.30789486,0.0002425,2]
[334758855,1723535559510,-2946.47,0.00024266,2]
[334758856,1723535559519,-500.0,0.00024272,2]
[334758857,1723535559529,-600.0,0.00024274,2]
[334758858,1723535559539,-600.0,0.00024287,2]
[334758859,1723535559548,-23162.33101077,0.00024295,2]
[334758860,1723535559559,-50448.2017887,0.000243,7]
[334758861,1723535559570,-25279.25110944,0.000243,30]
[334758862,1723535559580,-150.0,0.00024302,4]
[334758863,1723535559592,-500.0,0.0002431,2]
[334758864,1723535559606,-1000.0,0.00024326,2]
[334758865,1723535559621,-3788.32,0.00024337,2]
[334758866,1723535559634,-224.38282423,0.00024338,4]
[334758867,1723535559647,-2024.9084222,0.00024344,2]
[334758868,1723535559660,-500.0,0.00024364,2]
[334758869,1723535559674,-700.0,0.00024364,2]
[334758870,1723535559688,-571.13,0.00024379,2]
[334758871,1723535559704,-3214.8,0.00024383,2]
[334758872,1723535559717,-702.35,0.00024383,2]
[334758873,1723535559733,-571.12,0.00024383,2]
[334758874,1723535559747,-500.0,0.00024383,2]
[334758875,1723535559764,-750.64,0.00024383,2]
[334758876,1723535559777,-500.0,0.00024383,2]
[334758877,1723535559790,-483.93060268,0.00024383,2]
[334758878,1723535559802,-500.0,0.00024383,2]
[334758879,1723535559815,-588.49,0.00024383,2]
[334758880,1723535559829,-1015.8,0.00024383,2]
[334758881,1723535559843,-500.0,0.00024383,2]
[334758882,1723535559859,-2000.0,0.00024383,2]
[334758883,1723535559874,-508.3,0.00024383,2]
[334758884,1723535559885,-500.0,0.00024383,2]
[334758885,1723535559897,-969.43,0.00024383,2]
[334758886,1723535559912,-788.34,0.00024383,2]
[334758887,1723535559929,-500.0,0.00024383,2]
[334758888,1723535559941,-500.0,0.00024383,2]
[334758889,1723535559954,-510.82,0.00024383,2]
[334758890,1723535559967,-500.0,0.00024383,2]
[334758891,1723535559981,-2849.94,0.00024383,2]
[334758892,1723535559995,-500.0,0.00024383,2]
[334758893,1723535560008,-304.50691724,0.00024383,2]
[334758894,1723535560023,-903.07,0.00024383,2]
[334758895,1723535560037,-546.65,0.00024383,2]
[334758896,1723535560049,-506.46,0.00024383,2]
[334758897,1723535560070,-1249.54,0.00024383,2]
[334758898,1723535560084,-803.11,0.00024383,2]
[334758899,1723535560099,-500.0,0.00024383,2]
[334758900,1723535560111,-1655.36,0.00024383,2]
[334758901,1723535560127,-1068.76,0.00024383,2]
[334758902,1723535560139,-613.06,0.00024383,2]
[334758903,1723535560151,-1522.99,0.00024383,2]
[334758904,1723535560164,-914.8,0.00024383,2]
[334758905,1723535560178,-682.0,0.00024383,2]
[334758906,1723535560190,-500.0,0.00024383,2]
[334758907,1723535560204,-562.12,0.00024383,2]
[334758908,1723535560217,-2601.76188012,0.00024397,18]
[334758909,1723535560231,-2873.81,0.00024397,2]
[334758910,1723535560244,-122655.08888527,0.00024399,2]
[334758911,1723535560258,-260377.4059932,0.000244,7]
[334758912,1723535560271,-338.18913153,0.000244,2]
[334758913,1723535560284,-600.0,0.00024408,2]
[334758914,1723535560297,-1500.0,0.00024418,2]
[334758915,1723535560315,-334.29449749,0.0002442,2]
[334758916,1723535560327,-500.0,0.00024423,2]
[334758917,1723535560339,-500.0,0.0002443,2]
[334758918,1723535560352,-600.0,0.00024437,2]
[334758919,1723535560364,-3300.0,0.00024446,2]
[334758920,1723535560378,-5105.88996606,0.0002445,3]
[334758921,1723535560391,-600.0,0.00024451,2]
[334758922,1723535560403,-224.38282423,0.00024466,4]
[334758923,1723535560415,-1561.1,0.00024468,2]
[334758924,1723535560427,-600.0,0.00024491,2]
[334758925,1723535560440,-117330.47591889,0.00024493,2]
[334758926,1723535560453,-9700000.0,0.00024494,2]
[334758927,1723535560469,-10000.0,0.000245,7]
[334758928,1723535560482,-10000.0,0.000245,14]
[334758929,1723535560496,-10000.0,0.000245,7]
[334758930,1723535560510,-13000.0,0.000245,2]
[334758931,1723535560522,-790.34671098,0.000245,2]
[334758932,1723535560535,-23672.93,0.000245,2]
[334758933,1723535560548,-397.05,0.000245,2]
[334758934,1723535560567,-997904.67781652,0.000245,10]
[334758935,1723535560580,-1036.96663899,0.000245,2]
[334758936,1723535560592,-4173.1035496,0.000245,7]
[334758937,1723535560604,-500.0,0.00024501,2]
[334758938,1723535560616,-500.0,0.00024501,2]
[334758939,1723535560629,-3300.0,0.00024502,2]
[334758940,1723535560643,-1907.22,0.00024505,2]
[334758941,1723535560656,-150.0,0.00024506,4]
[334758942,1723535560668,-158.2033025,0.00024513,2]
[334758943,1723535560682,-700.0,0.00024526,2]
[334758944,1723535560697,-150.0,0.0002454,4]
[334758945,1723535560710,-500.0,0.00024548,2]
[334758946,1723535560723,-186.44,0.00024566,2]
[334758947,1723535560737,-500.0,0.00024572,2]
[334758948,1723535560749,-224.38282423,0.00024593,4]
[334758949,1723535560761,-10540.79,0.000246,7]
[334758950,1723535560775,-500.0,0.00024617,2]
[334758951,1723535560787,-500.0,0.00024643,2]
[334758952,1723535560800,-500.0,0.00024654,2]
[334758953,1723535560813,-1900.0,0.00024654,2]
[334758954,1723535560826,-167.71100341,0.00024657,2]
[334758955,1723535560839,-500.0,0.00024657,8]
[334758956,1723535560850,-506.09166369,0.00024657,8]
[334758957,1723535560863,-500.0,0.00024657,8]
[334758958,1723535560874,-500.0,0.00024657,8]
[334758959,1723535560886,-500.0,0.00024657,8]
[334758960,1723535560899,-3214.8,0.00024657,2]
[334758961,1723535560911,-702.35,0.00024657,2]
[334758962,1723535560923,-571.12,0.00024657,2]
[334758963,1723535560935,-500.0,0.00024657,2]
[334758964,1723535560947,-750.64,0.00024657,2]
[334758965,1723535560959,-500.0,0.00024657,2]
[334758966,1723535560971,-500.0,0.00024657,2]
[334758967,1723535560983,-588.49,0.00024657,2]
[334758968,1723535560995,-1015.8,0.00024657,2]
[334758969,1723535561006,-500.0,0.00024657,2]
[334758970,1723535561017,-1771.84,0.00024657,2]
[334758971,1723535561030,-508.3,0.00024657,2]
[334758972,1723535561042,-500.0,0.00024657,2]
[334758973,1723535561053,-969.43,0.00024657,2]
[334758974,1723535561068,-788.34,0.00024657,2]
[334758975,1723535561079,-500.0,0.00024657,2]
[334758976,1723535561091,-500.0,0.00024657,2]
[334758977,1723535561102,-510.82,0.00024657,2]
[334758978,1723535561115,-500.0,0.00024657,2]
[334758979,1723535561127,-2849.94,0.00024657,2]
[334758980,1723535561139,-405.20200594,0.00024657,2]
[334758981,1723535561152,-903.07,0.00024657,2]
[334758982,1723535561164,-546.65,0.00024657,2]
[334758983,1723535561178,-506.46,0.00024657,2]
[334758984,1723535561190,-1249.54,0.00024657,2]
[334758985,1723535561202,-803.11,0.00024657,2]
[334758986,1723535561215,-500.0,0.00024657,2]
[334758987,1723535561227,-1655.36,0.00024657,2]
[334758988,1723535561240,-1068.76,0.00024657,2]
[334758989,1723535561252,-613.06,0.00024657,2]
[334758990,1723535561264,-1522.99,0.00024657,2]
[334758991,1723535561275,-914.8,0.00024657,2]
[334758992,1723535561287,-682.0,0.00024657,2]
[334758993,1723535561300,-500.0,0.00024657,2]
[334758994,1723535561313,-562.12,0.00024657,2]
[334758995,1723535561326,-1593.27,0.00024657,2]
[334758996,1723535561338,-1593.27,0.00024657,2]
[334758997,1723535561351,-1593.27,0.00024657,2]
[334758998,1723535561363,-1593.27,0.00024657,2]
[334758999,1723535561375,-1593.27,0.00024657,2]
[334759000,1723535561388,-1593.27,0.00024657,2]
[334759001,1723535561401,-1593.27,0.00024657,2]
[334759002,1723535561414,-1593.27,0.00024657,2]
[334759003,1723535561426,-1593.27,0.00024657,2]
[334759004,1723535561438,-1593.27,0.00024657,2]
[334759005,1723535561450,-1593.27,0.00024657,2]
[334759006,1723535561462,-1593.27,0.00024657,2]
[334759007,1723535561475,-1593.27,0.00024657,2]
[334759008,1723535561487,-1593.27,0.00024657,2]
[334759009,1723535561499,-1593.27,0.00024657,2]
[334759010,1723535561512,-1593.27,0.00024657,2]
[334759011,1723535561523,-1593.27,0.00024657,2]
[334759012,1723535561535,-1593.27,0.00024657,2]
[334759013,1723535561547,-1593.27,0.00024657,2]
[334759014,1723535561562,-1593.27,0.00024657,2]
[334759015,1723535561574,-1593.27,0.00024657,2]
[334759016,1723535561585,-1593.27,0.00024657,2]
[334759017,1723535561597,-1593.27,0.00024657,2]
[334759018,1723535561608,-1593.32935483,0.00024657,2]
[334759019,1723535561620,-8541.33,0.00024658,4]
[334759020,1723535561632,-244.94,0.00024658,4]
[334759021,1723535561644,-150.37430307,0.0002466,2]
[334759022,1723535561655,-150.37430307,0.0002466,2]
[334759023,1723535561667,-150.37430307,0.0002466,2]
[334759024,1723535561678,-150.37430307,0.0002466,2]
[334759025,1723535561689,-150.37430307,0.0002466,2]
[334759026,1723535561700,-150.37430307,0.0002466,2]
[334759027,1723535561711,-150.37430307,0.0002466,2]
[334759028,1723535561723,-150.37430307,0.0002466,2]
[334759029,1723535561734,-150.37430307,0.0002466,2]
[334759030,1723535561746,-150.37430307,0.0002466,2]
[334759031,1723535561757,-150.37430307,0.0002466,2]
[334759032,1723535561767,-150.37430307,0.0002466,2]
[334759033,1723535561779,-150.37430307,0.0002466,2]
[334759034,1723535561790,-150.37430307,0.0002466,2]
[334759035,1723535561800,-150.87,0.0002466,2]
[334759036,1723535561812,-451.1979092,0.0002466,2]
[334759037,1723535561824,-451.1979092,0.0002466,2]
[334759038,1723535561835,-451.1979092,0.0002466,2]
[334759039,1723535561846,-451.1979092,0.0002466,2]
[334759040,1723535561857,-451.1979092,0.0002466,2]
[334759041,1723535561868,-451.1979092,0.0002466,2]
[334759042,1723535561880,-451.1979092,0.0002466,2]
[334759043,1723535561891,-451.1979092,0.0002466,2]
[334759044,1723535561902,-451.1979092,0.0002466,2]
[334759045,1723535561913,-451.1979092,0.0002466,2]
[334759046,1723535561924,-451.1979092,0.0002466,2]
[334759047,1723535561935,-451.1979092,0.0002466,2]
[334759048,1723535561946,-451.1979092,0.0002466,2]
[334759049,1723535561956,-451.1979092,0.0002466,2]
[334759050,1723535561968,-451.1979092,0.0002466,2]
[334759051,1723535561979,-451.1979092,0.0002466,2]
[334759052,1723535561991,-451.1979092,0.0002466,2]
[334759053,1723535562002,-451.1979092,0.0002466,2]
[334759054,1723535562013,-451.1979092,0.0002466,2]
[334759055,1723535562024,-156.33373822,0.0002466,2]
[334759056,1723535562035,-156.33373822,0.0002466,2]
[334759057,1723535562046,-156.33373822,0.0002466,2]
[334759058,1723535562057,-156.33373822,0.0002466,2]
[334759059,1723535562069,-156.33373822,0.0002466,2]
[334759060,1723535562080,-156.33373822,0.0002466,2]
[334759061,1723535562091,-156.33373822,0.0002466,2]
[334759062,1723535562102,-156.33373822,0.0002466,2]
[334759063,1723535562113,-156.33373822,0.0002466,2]
[334759064,1723535562124,-156.33373822,0.0002466,2]
[334759065,1723535562135,-156.33373822,0.0002466,2]
[334759066,1723535562147,-156.33373822,0.0002466,2]
[334759067,1723535562158,-156.33373822,0.0002466,2]
[334759068,1723535562169,-156.33373822,0.0002466,2]
[334759069,1723535562180,-156.33373822,0.0002466,2]
[334759070,1723535562191,-156.83,0.0002466,2]
[334759071,1723535562202,-500.34296231,0.0002466,2]
[334759072,1723535562214,-500.34296231,0.0002466,2]
[334759073,1723535562225,-500.34296231,0.0002466,2]
[334759074,1723535562236,-500.34296231,0.0002466,2]
[334759075,1723535562246,-500.34296231,0.0002466,2]
[334759076,1723535562257,-500.34296231,0.0002466,2]
[334759077,1723535562267,-500.34296231,0.0002466,2]
[334759078,1723535562278,-500.34296231,0.0002466,2]
[334759079,1723535562288,-500.34296231,0.0002466,2]
[334759080,1723535562299,-500.34296231,0.0002466,2]
[334759081,1723535562309,-500.34296231,0.0002466,2]
[334759082,1723535562320,-500.34296231,0.0002466,2]
[334759083,1723535562332,-500.34296231,0.0002466,2]
[334759084,1723535562343,-500.34296231,0.0002466,2]
[334759085,1723535562355,-500.34296231,0.0002466,2]
[334759086,1723535562366,-500.34296231,0.0002466,2]
[334759087,1723535562377,-500.34296231,0.0002466,2]
[334759088,1723535562388,-500.34296231,0.0002466,2]
[334759089,1723535562399,-500.34296231,0.0002466,2]
[334759090,1723535562410,-301.60022491,0.0002466,2]
[334759091,1723535562421,-301.60022491,0.0002466,2]
[334759092,1723535562431,-301.60022491,0.0002466,2]
[334759093,1723535562442,-301.60022491,0.0002466,2]
[334759094,1723535562453,-301.60022491,0.0002466,2]
[334759095,1723535562463,-301.60022491,0.0002466,2]
[334759096,1723535562474,-301.60022491,0.0002466,2]
[334759097,1723535562485,-301.60022491,0.0002466,2]
[334759098,1723535562496,-301.60022491,0.0002466,2]
[334759099,1723535562507,-301.60022491,0.0002466,2]
[334759100,1723535562518,-301.60022491,0.0002466,2]
[334759101,1723535562529,-301.60022491,0.0002466,2]
[334759102,1723535562540,-301.60022491,0.0002466,2]
[334759103,1723535562551,-301.60022491,0.0002466,2]
[334759104,1723535562564,-301.60022491,0.0002466,2]
[334759105,1723535562575,-301.60022491,0.0002466,2]
[334759106,1723535562585,-301.60022491,0.0002466,2]
[334759107,1723535562596,-301.60022491,0.0002466,2]
[334759108,1723535562607,-301.60022491,0.0002466,2]
[334759109,1723535562619,-302.1,0.0002466,2]
[334759110,1723535562629,-1206.47589964,0.0002466,2]
[334759111,1723535562641,-1206.47589964,0.0002466,2]
[334759112,1723535562652,-1206.47589964,0.0002466,2]
[334759113,1723535562663,-1206.47589964,0.0002466,2]
[334759114,1723535562675,-1206.47589964,0.0002466,2]
[334759115,1723535562687,-1206.47589964,0.0002466,2]
[334759116,1723535562698,-1206.47589964,0.0002466,2]
[334759117,1723535562711,-1206.47589964,0.0002466,2]